[Event "Swedish U16 Team Championship 2019 - Final"]
[Site "Molnlycke Kulturhus, Biblioteksgatan 2, Molnlycke, Sweden"]
[Date "2019.08.16"]
[Round "1.14"]
[White "Ivarsson, Sebastian"]
[Black "Lindholm, Gustav"]
[Result "1-0"]
[TimeControl "90 minutes + 30 seconds per move from move one."]
[WhiteElo "2001"]
[BlackElo "2006"]

1. d4 {[%clk 01:30:52]} {[%emt 00:00:07]} d5 {[%clk 01:30:56]} {[%emt
00:00:05]} 2. c4 {[%clk 01:30:54]} {[%emt 00:00:27]} c6 {[%clk 01:31:21]}
{[%emt 00:00:06]} 3. Nf3 {[%clk 01:31:02]} {[%emt 00:00:21]} Nf6 {[%clk
01:31:42]} {[%emt 00:00:10]} 4. Nc3 {[%clk 01:30:40]} {[%emt 00:00:52]} dxc4
{[%clk 01:31:45]} {[%emt 00:00:27]} 5. a4 {[%clk 01:30:28]} {[%emt 00:00:42]}
Bf5 {[%clk 01:31:43]} {[%emt 00:00:33]} 6. e3 {[%clk 01:29:48]} {[%emt
00:01:09]} e6 {[%clk 01:30:31]} {[%emt 00:01:42]} 7. Bxc4 {[%clk 01:29:29]}
{[%emt 00:00:48]} Nbd7 {[%clk 01:27:26]} {[%emt 00:03:36]} 8. O-O {[%clk
01:25:26]} {[%emt 00:04:34]} Be7 {[%clk 01:25:24]} {[%emt 00:02:32]} 9. Bd3
{[%clk 01:12:58]} {[%emt 00:12:57]} Bxd3 {[%clk 01:21:22]} {[%emt 00:04:33]} 10.
Qxd3 {[%clk 01:13:22]} {[%emt 00:00:06]} O-O {[%clk 01:04:59]} {[%emt
00:16:52]} 11. e4 {[%clk 01:09:15]} {[%emt 00:04:37]} Qb6 {[%clk 00:53:30]}
{[%emt 00:12:00]} 12. a5 {[%clk 01:02:42]} {[%emt 00:07:03]} Qc7 {[%clk
00:51:08]} {[%emt 00:02:51]} 13. Bg5 {[%clk 01:00:07]} {[%emt 00:03:05]} Bb4
{[%clk 00:39:54]} {[%emt 00:11:43]} 14. e5 {[%clk 00:40:04]} {[%emt 00:20:33]}
Nd5 {[%clk 00:29:28]} {[%emt 00:10:57]} 15. Nxd5 {[%clk 00:37:56]} {[%emt
00:02:38]} exd5 {[%clk 00:24:40]} {[%emt 00:05:18]} 16. Ra4 {[%clk 00:37:15]}
{[%emt 00:01:11]} Bxa5 {[%clk 00:12:27]} {[%emt 00:12:43]} 17. Be7 {[%clk
00:37:27]} {[%emt 00:00:18]} Rfe8 {[%clk 00:10:31]} {[%emt 00:02:27]} 18. Ng5
{[%clk 00:36:43]} {[%emt 00:01:14]} g6 {[%clk 00:08:09]} {[%emt 00:02:52]} 19.
Qh3 {[%clk 00:29:02]} {[%emt 00:08:10]} h5 {[%clk 00:08:15]} {[%emt 00:00:25]}
20. Bd6 {[%clk 00:21:39]} {[%emt 00:07:53]} Qd8 {[%clk 00:08:04]} {[%emt
00:00:41]} 21. Rxa5 {[%clk 00:20:04]} {[%emt 00:02:05]} Nxe5 {[%clk 00:02:03]}
{[%emt 00:06:31]} 22. dxe5 {[%clk 00:20:06]} {[%emt 00:00:28]} Qxg5 {[%clk
00:00:43]} {[%emt 00:01:50]} 23. Qd7 {[%clk 00:18:19]} {[%emt 00:02:17]} Qd2
{[%clk 00:00:34]} {[%emt 00:00:39]} 24. Ra3 {[%clk 00:18:33]} {[%emt 00:00:13]}
Rad8 {[%clk 00:00:33]} {[%emt 00:00:33]} 25. Qxb7 {[%clk 00:18:38]} {[%emt
00:00:25]} a5 {[%clk 00:00:32]} {[%emt 00:00:31]} 26. Rf3 {[%clk 00:18:45]}
{[%emt 00:00:23]} 1-0

[Event "Swedish U16 Team Championship 2019 - Final"]
[Site "Molnlycke Kulturhus, Biblioteksgatan 2, Molnlycke, Sweden"]
[Date "2019.08.16"]
[Round "1.15"]
[White "Strom-Engdahl, Alexander"]
[Black "Dingertz, Erik"]
[Result "1-0"]
[TimeControl "90 minutes + 30 seconds per move from move one."]
[WhiteElo "1858"]
[BlackElo "1888"]

1. c4 {[%clk 01:30:01]} {[%emt 00:00:58]} e5 {[%clk 01:30:36]} {[%emt
00:00:26]} 2. g3 {[%clk 01:29:36]} {[%emt 00:00:54]} Nf6 {[%clk 01:30:27]}
{[%emt 00:00:39]} 3. Bg2 {[%clk 01:29:04]} {[%emt 00:01:02]} d5 {[%clk
01:30:06]} {[%emt 00:00:50]} 4. cxd5 {[%clk 01:28:14]} {[%emt 00:01:20]} Nxd5
{[%clk 01:30:27]} {[%emt 00:00:09]} 5. Nc3 {[%clk 01:28:04]} {[%emt 00:00:40]}
Nb6 {[%clk 01:28:56]} {[%emt 00:02:03]} 6. d3 {[%clk 01:26:16]} {[%emt
00:02:17]} Nc6 {[%clk 01:28:24]} {[%emt 00:01:02]} 7. Nf3 {[%clk 01:23:55]}
{[%emt 00:02:50]} Be7 {[%clk 01:26:09]} {[%emt 00:02:45]} 8. O-O {[%clk
01:20:45]} {[%emt 00:03:41]} Be6 {[%clk 01:25:44]} {[%emt 00:00:55]} 9. Be3
{[%clk 01:17:19]} {[%emt 00:03:55]} O-O {[%clk 01:11:44]} {[%emt 00:14:30]} 10.
Ne4 {[%clk 01:10:49]} {[%emt 00:07:00]} f5 {[%clk 00:51:44]} {[%emt 00:20:30]}
11. Nc5 {[%clk 01:06:48]} {[%emt 00:04:31]} Bd5 {[%clk 00:47:17]} {[%emt
00:04:56]} 12. Rc1 {[%clk 01:02:44]} {[%emt 00:04:35]} Nd4 {[%clk 00:36:54]}
{[%emt 00:10:54]} 13. Bxd4 {[%clk 00:56:22]} {[%emt 00:06:52]} exd4 {[%clk
00:37:10]} {[%emt 00:00:14]} 14. Qc2 {[%clk 00:53:53]} {[%emt 00:02:59]} Bf6
{[%clk 00:31:38]} {[%emt 00:06:02]} 15. Nb3 {[%clk 00:51:29]} {[%emt 00:02:54]}
Rf7 {[%clk 00:25:49]} {[%emt 00:06:19]} 16. Qc5 {[%clk 00:47:29]} {[%emt
00:04:30]} Rd7 {[%clk 00:21:07]} {[%emt 00:05:12]} 17. Bh3 {[%clk 00:32:53]}
{[%emt 00:15:06]} Be7 {[%clk 00:04:40]} {[%emt 00:16:56]} 18. Qc2 {[%clk
00:30:02]} {[%emt 00:03:22]} Bxf3 {[%clk 00:04:34]} {[%emt 00:00:36]} 19. exf3
{[%clk 00:30:17]} {[%emt 00:00:14]} g6 {[%clk 00:04:45]} {[%emt 00:00:20]} 20.
Rfe1 {[%clk 00:28:30]} {[%emt 00:02:17]} Bb4 {[%clk 00:03:42]} {[%emt
00:01:33]} 21. Re2 {[%clk 00:27:59]} {[%emt 00:01:01]} c6 {[%clk 00:04:01]}
{[%emt 00:00:11]} 22. a3 {[%clk 00:27:59]} {[%emt 00:00:31]} Bf8 {[%clk
00:04:07]} {[%emt 00:00:22]} 23. Rce1 {[%clk 00:27:51]} {[%emt 00:00:40]} Nd5
{[%clk 00:02:54]} {[%emt 00:01:43]} 24. Bg2 {[%clk 00:24:53]} {[%emt 00:03:28]}
Bg7 {[%clk 00:02:55]} {[%emt 00:00:29]} 25. Nc5 {[%clk 00:25:00]} {[%emt
00:00:23]} Rf7 {[%clk 00:02:50]} {[%emt 00:00:34]} 26. f4 {[%clk 00:24:12]}
{[%emt 00:01:18]} Bf6 {[%clk 00:01:31]} {[%emt 00:01:49]} 27. Nxb7 {[%clk
00:19:57]} {[%emt 00:04:45]} Rxb7 {[%clk 00:01:47]} {[%emt 00:00:14]} 28. Qxc6
{[%clk 00:20:23]} {[%emt 00:00:04]} Rd7 {[%clk 00:01:15]} {[%emt 00:01:02]} 29.
Bxd5+ {[%clk 00:20:12]} {[%emt 00:00:41]} Rxd5 {[%clk 00:01:41]} {[%emt
00:00:05]} 30. Re8+ {[%clk 00:20:38]} {[%emt 00:00:04]} Qxe8 {[%clk 00:02:01]}
{[%emt 00:00:10]} 31. Rxe8+ {[%clk 00:21:00]} {[%emt 00:00:07]} Rxe8 {[%clk
00:02:29]} {[%emt 00:00:02]} 32. Qxe8+ {[%clk 00:20:23]} {[%emt 00:01:07]} Kg7
{[%clk 00:02:57]} {[%emt 00:00:02]} 33. Qe6 {[%clk 00:20:40]} {[%emt 00:00:13]}
Rc5 {[%clk 00:02:31]} {[%emt 00:00:56]} 34. Qd7+ {[%clk 00:20:49]} {[%emt
00:00:21]} Kh6 {[%clk 00:02:55]} {[%emt 00:00:05]} 35. Qxa7 {[%clk 00:21:12]}
{[%emt 00:00:08]} Rc1+ {[%clk 00:03:17]} {[%emt 00:00:08]} 36. Kg2 {[%clk
00:21:38]} {[%emt 00:00:03]} Rc2 {[%clk 00:03:40]} {[%emt 00:00:06]} 37. b4
{[%clk 00:21:51]} {[%emt 00:00:18]} Rc3 {[%clk 00:04:03]} {[%emt 00:00:08]} 38.
Qa6 {[%clk 00:22:04]} {[%emt 00:00:17]} Be7 {[%clk 00:04:11]} {[%emt 00:00:20]}
1-0

[Event "Swedish U16 Team Championship 2019 - Final"]
[Site "Molnlycke Kulturhus, Biblioteksgatan 2, Molnlycke, Sweden"]
[Date "2019.08.16"]
[Round "1.16"]
[White "Ljung, Harald"]
[Black "Ghaderi, Roshan"]
[Result "1/2-1/2"]
[TimeControl "90 minutes + 30 seconds per move from move one."]
[WhiteElo "1811"]
[BlackElo "1379"]

1. d4 {[%clk 01:30:53]} {[%emt 00:00:06]} Nf6 {[%clk 01:30:55]} {[%emt
00:00:06]} 2. c4 {[%clk 01:31:14]} {[%emt 00:00:09]} e6 {[%clk 01:31:06]}
{[%emt 00:00:20]} 3. Nc3 {[%clk 01:30:41]} {[%emt 00:01:03]} g6 {[%clk
01:31:14]} {[%emt 00:00:21]} 4. Nf3 {[%clk 01:29:15]} {[%emt 00:01:56]} Bg7
{[%clk 01:31:37]} {[%emt 00:00:07]} 5. e4 {[%clk 01:26:34]} {[%emt 00:03:12]}
d6 {[%clk 01:31:31]} {[%emt 00:00:36]} 6. Be2 {[%clk 01:26:25]} {[%emt
00:00:39]} O-O {[%clk 01:31:14]} {[%emt 00:00:46]} 7. O-O {[%clk 01:24:16]}
{[%emt 00:02:40]} b6 {[%clk 01:28:32]} {[%emt 00:03:12]} 8. h3 {[%clk
01:21:02]} {[%emt 00:03:44]} Bb7 {[%clk 01:27:44]} {[%emt 00:01:17]} 9. Qc2
{[%clk 01:20:50]} {[%emt 00:00:41]} d5 {[%clk 01:21:32]} {[%emt 00:06:43]} 10.
cxd5 {[%clk 01:15:54]} {[%emt 00:05:26]} exd5 {[%clk 01:21:28]} {[%emt
00:00:34]} 11. e5 {[%clk 01:16:10]} {[%emt 00:00:14]} Nfd7 {[%clk 01:20:02]}
{[%emt 00:01:56]} 12. Qb3 {[%clk 01:12:41]} {[%emt 00:03:59]} c5 {[%clk
01:18:49]} {[%emt 00:01:42]} 13. Nxd5 {[%clk 01:09:18]} {[%emt 00:03:54]} cxd4
{[%clk 01:16:46]} {[%emt 00:02:34]} 14. Bg5 {[%clk 01:09:42]} {[%emt 00:00:06]}
Nc5 {[%clk 01:13:03]} {[%emt 00:04:12]} 15. Ne7+ {[%clk 01:00:33]} {[%emt
00:09:38]} Kh8 {[%clk 01:13:25]} {[%emt 00:00:08]} 16. Qb4 {[%clk 00:58:02]}
{[%emt 00:03:01]} f6 {[%clk 01:13:45]} {[%emt 00:00:10]} 17. exf6 {[%clk
00:49:44]} {[%emt 00:08:48]} Bxf6 {[%clk 01:14:08]} {[%emt 00:00:07]} 18. Nxg6+
{[%clk 00:35:24]} {[%emt 00:14:49]} hxg6 {[%clk 01:14:29]} {[%emt 00:00:10]} 19.
Bxf6+ {[%clk 00:35:39]} {[%emt 00:00:16]} Qxf6 {[%clk 01:13:44]} {[%emt
00:01:14]} 20. Qxd4 {[%clk 00:29:27]} {[%emt 00:06:43]} Qxd4 {[%clk 01:10:20]}
{[%emt 00:03:54]} 21. Nxd4 {[%clk 00:29:49]} {[%emt 00:00:07]} Nc6 {[%clk
01:08:33]} {[%emt 00:02:17]} 22. Nxc6 {[%clk 00:27:27]} {[%emt 00:02:52]} Bxc6
{[%clk 01:08:56]} {[%emt 00:00:08]} 23. b4 {[%clk 00:27:46]} {[%emt 00:00:11]}
Ne6 {[%clk 01:07:49]} {[%emt 00:01:37]} 24. Bg4 {[%clk 00:22:56]} {[%emt
00:05:20]} Nf4 {[%clk 01:01:16]} {[%emt 00:07:03]} 25. g3 {[%clk 00:21:09]}
{[%emt 00:02:18]} Nd3 {[%clk 00:47:08]} {[%emt 00:14:36]} 26. a3 {[%clk
00:15:15]} {[%emt 00:06:26]} Ne5 {[%clk 00:46:33]} {[%emt 00:01:05]} 27. Be2
{[%clk 00:10:04]} {[%emt 00:05:41]} Nf3+ {[%clk 00:46:39]} {[%emt 00:00:23]} 28.
Bxf3 {[%clk 00:10:21]} {[%emt 00:00:14]} Rxf3 {[%clk 00:46:58]} {[%emt
00:00:12]} 29. Rfc1 {[%clk 00:08:48]} {[%emt 00:02:03]} Ba4 {[%clk 00:46:29]}
{[%emt 00:00:58]} 30. Rc7 {[%clk 00:08:11]} {[%emt 00:01:07]} a5 {[%clk
00:44:33]} {[%emt 00:02:26]} 31. Rb7 {[%clk 00:05:27]} {[%emt 00:03:14]} Rf6
{[%clk 00:43:18]} {[%emt 00:01:45]} 32. bxa5 {[%clk 00:04:31]} {[%emt
00:01:27]} bxa5 {[%clk 00:43:42]} {[%emt 00:00:06]} 33. Rc1 {[%clk 00:02:18]}
{[%emt 00:02:42]} Raf8 {[%clk 00:39:09]} {[%emt 00:05:03]} 34. Rcc7 {[%clk
00:01:26]} {[%emt 00:01:23]} Rd8 {[%clk 00:39:18]} {[%emt 00:00:20]} 35. Rh7+
{[%clk 00:00:45]} {[%emt 00:01:12]} Kg8 {[%clk 00:39:40]} {[%emt 00:00:08]} 36.
Rhg7+ {[%clk 00:00:43]} {[%emt 00:00:32]} Kf8 {[%clk 00:39:49]} {[%emt
00:00:20]} 37. f4 {[%clk 00:00:46]} {[%emt 00:00:28]} Rd1+ {[%clk 00:38:26]}
{[%emt 00:01:53]} 38. Kf2 {[%clk 00:01:10]} {[%emt 00:00:06]} Rd2+ {[%clk
00:38:44]} {[%emt 00:00:11]} 39. Ke3 {[%clk 00:01:02]} {[%emt 00:00:39]} Rd8
{[%clk 00:39:07]} {[%emt 00:00:07]} 40. Rge7 {[%clk 00:01:03]} {[%emt
00:00:29]} Re8 {[%clk 00:37:09]} {[%emt 00:02:27]} 41. Rxe8+ {[%clk 00:01:26]}
{[%emt 00:00:07]} Kxe8 {[%clk 00:37:31]} {[%emt 00:00:08]} 42. Ra7 {[%clk
00:01:30]} {[%emt 00:00:26]} Rf5 {[%clk 00:37:20]} {[%emt 00:00:41]} 43. Rg7
{[%clk 00:01:04]} {[%emt 00:00:56]} Rf6 {[%clk 00:36:35]} {[%emt 00:01:14]} 44.
Ra7 {[%clk 00:01:28]} {[%emt 00:00:06]} Rf5 {[%clk 00:36:01]} {[%emt 00:01:04]}
45. Rg7 {[%clk 00:01:49]} {[%emt 00:00:09]} 1/2-1/2

[Event "Swedish U16 Team Championship 2019 - Final"]
[Site "Molnlycke Kulturhus, Biblioteksgatan 2, Molnlycke, Sweden"]
[Date "2019.08.16"]
[Round "1.17"]
[White "Hjernestam, John"]
[Black "Nord, Gabriel"]
[Result "1/2-1/2"]
[TimeControl "90 minutes + 30 seconds per move from move one."]
[WhiteElo "1376"]
[BlackElo "1762"]

1. d4 {[%clk 01:30:58]} {[%emt 00:00:02]} d5 {[%clk 01:30:49]} {[%emt
00:00:11]} 2. Bf4 {[%clk 01:31:17]} {[%emt 00:00:11]} Nf6 {[%clk 01:29:37]}
{[%emt 00:01:42]} 3. e3 {[%clk 01:31:39]} {[%emt 00:00:07]} Bf5 {[%clk
01:28:54]} {[%emt 00:01:14]} 4. c3 {[%clk 01:29:56]} {[%emt 00:02:13]} Nbd7
{[%clk 01:23:49]} {[%emt 00:05:35]} 5. Bd3 {[%clk 01:29:04]} {[%emt 00:01:21]}
Bg6 {[%clk 01:22:34]} {[%emt 00:01:45]} 6. h3 {[%clk 01:25:47]} {[%emt
00:03:47]} e6 {[%clk 01:20:32]} {[%emt 00:02:32]} 7. Nf3 {[%clk 01:25:49]}
{[%emt 00:00:28]} Ne4 {[%clk 01:15:27]} {[%emt 00:05:36]} 8. O-O {[%clk
01:21:27]} {[%emt 00:04:52]} Bd6 {[%clk 01:08:58]} {[%emt 00:06:59]} 9. Bxd6
{[%clk 01:17:48]} {[%emt 00:04:09]} Nxd6 {[%clk 01:08:32]} {[%emt 00:00:56]} 10.
Bxg6 {[%clk 01:17:33]} {[%emt 00:00:45]} hxg6 {[%clk 01:08:47]} {[%emt
00:00:16]} 11. Nbd2 {[%clk 01:17:43]} {[%emt 00:00:20]} g5 {[%clk 01:04:22]}
{[%emt 00:04:55]} 12. Ne5 {[%clk 01:00:08]} {[%emt 00:18:05]} f6 {[%clk
00:58:09]} {[%emt 00:06:43]} 13. Nxd7 {[%clk 00:51:17]} {[%emt 00:09:21]} Qxd7
{[%clk 00:58:20]} {[%emt 00:00:20]} 14. f4 {[%clk 00:50:47]} {[%emt 00:00:59]}
gxf4 {[%clk 00:54:58]} {[%emt 00:03:52]} 15. Rxf4 {[%clk 00:50:03]} {[%emt
00:01:14]} e5 {[%clk 00:47:29]} {[%emt 00:08:00]} 16. dxe5 {[%clk 00:45:24]}
{[%emt 00:05:08]} fxe5 {[%clk 00:47:53]} {[%emt 00:00:08]} 17. Rg4 {[%clk
00:37:18]} {[%emt 00:08:35]} Nf5 {[%clk 00:44:01]} {[%emt 00:04:23]} 18. Nf1
{[%clk 00:35:48]} {[%emt 00:01:59]} e4 {[%clk 00:41:12]} {[%emt 00:03:19]} 19.
c4 {[%clk 00:25:56]} {[%emt 00:10:22]} c6 {[%clk 00:38:00]} {[%emt 00:03:42]}
20. Qb3 {[%clk 00:23:57]} {[%emt 00:02:29]} O-O-O {[%clk 00:35:29]} {[%emt
00:03:02]} 21. Qa4 {[%clk 00:20:31]} {[%emt 00:03:56]} Kb8 {[%clk 00:34:05]}
{[%emt 00:01:54]} 22. Rd1 {[%clk 00:20:22]} {[%emt 00:00:39]} Qe6 {[%clk
00:30:48]} {[%emt 00:03:48]} 23. cxd5 {[%clk 00:18:16]} {[%emt 00:02:36]} cxd5
{[%clk 00:29:55]} {[%emt 00:01:22]} 24. Qb3 {[%clk 00:17:49]} {[%emt 00:00:56]}
Rd6 {[%clk 00:24:30]} {[%emt 00:05:55]} 25. Ng3 {[%clk 00:17:15]} {[%emt
00:01:04]} Nxg3 {[%clk 00:22:32]} {[%emt 00:02:28]} 26. Rxg3 {[%clk 00:17:34]}
{[%emt 00:00:11]} Qe5 {[%clk 00:21:09]} {[%emt 00:01:53]} 27. Rg4 {[%clk
00:17:17]} {[%emt 00:00:47]} g5 {[%clk 00:20:52]} {[%emt 00:00:47]} 28. Rd4
{[%clk 00:14:21]} {[%emt 00:03:27]} Rf8 {[%clk 00:18:45]} {[%emt 00:02:37]} 29.
Qb4 {[%clk 00:13:46]} {[%emt 00:01:05]} Rdf6 {[%clk 00:16:17]} {[%emt
00:02:58]} 30. Rd1 {[%clk 00:12:38]} {[%emt 00:01:38]} Rf2 {[%clk 00:13:49]}
{[%emt 00:02:58]} 31. Qc5 {[%clk 00:08:40]} {[%emt 00:04:28]} b6 {[%clk
00:06:29]} {[%emt 00:07:52]} 32. Rxg5 {[%clk 00:02:58]} {[%emt 00:06:11]} Qxg5
{[%clk 00:05:03]} {[%emt 00:01:56]} 33. Qd6+ {[%clk 00:03:08]} {[%emt
00:00:20]} Kb7 {[%clk 00:04:27]} {[%emt 00:01:06]} 1/2-1/2

[Event "Swedish U16 Team Championship 2019 - Final"]
[Site "Molnlycke Kulturhus, Biblioteksgatan 2, Molnlycke, Sweden"]
[Date "2019.08.16"]
[Round "1.18"]
[White "Anfalt, Erik"]
[Black "Storme, Joel"]
[Result "1-0"]
[TimeControl "90 minutes + 30 seconds per move from move one."]
[WhiteElo "1558"]
[BlackElo "1371"]

1. e4 {[%clk 01:30:54]} {[%emt 00:00:05]} d5 {[%clk 01:30:53]} {[%emt
00:00:07]} 2. exd5 {[%clk 01:31:09]} {[%emt 00:00:15]} Qxd5 {[%clk 01:31:15]}
{[%emt 00:00:08]} 3. Nc3 {[%clk 01:31:27]} {[%emt 00:00:11]} Qa5 {[%clk
01:31:31]} {[%emt 00:00:14]} 4. Nf3 {[%clk 01:30:36]} {[%emt 00:01:22]} Nf6
{[%clk 01:31:15]} {[%emt 00:00:47]} 5. d4 {[%clk 01:29:11]} {[%emt 00:01:54]}
c6 {[%clk 01:31:27]} {[%emt 00:00:18]} 6. Be2 {[%clk 01:28:08]} {[%emt
00:01:34]} Bf5 {[%clk 01:31:30]} {[%emt 00:00:27]} 7. O-O {[%clk 01:26:17]}
{[%emt 00:02:21]} e6 {[%clk 01:31:27]} {[%emt 00:00:32]} 8. Bd2 {[%clk
01:24:05]} {[%emt 00:02:42]} Qc7 {[%clk 01:30:50]} {[%emt 00:01:06]} 9. Ne5
{[%clk 01:12:37]} {[%emt 00:11:59]} Nbd7 {[%emt 00:05:22]} 10. f4 {[%clk
00:58:22]} {[%emt 00:12:25]} Nxe5 {[%clk 01:25:24]} {[%emt 00:03:24]} 11. fxe5
{[%clk 00:57:09]} {[%emt 00:01:44]} Nd5 {[%clk 01:25:10]} {[%emt 00:00:44]} 12.
Nxd5 {[%clk 00:57:08]} {[%emt 00:00:32]} cxd5 {[%clk 01:25:28]} {[%emt
00:00:12]} 13. c3 {[%clk 00:57:21]} {[%emt 00:00:16]} Be7 {[%clk 01:24:10]}
{[%emt 00:01:48]} 14. Bb5+ {[%clk 00:56:29]} {[%emt 00:01:23]} Kd8 {[%clk
01:23:03]} {[%emt 00:01:37]} 15. Be3 {[%clk 00:54:51]} {[%emt 00:02:08]} Qb6
{[%emt 00:08:23]} 16. Qb3 {[%clk 00:33:38]} {[%emt 00:15:27]} Rc8 {[%emt
00:04:33]} 17. Rad1 {[%clk 00:30:45]} {[%emt 00:00:32]} Kc7 {[%emt 00:04:44]}
18. Bd3 {[%clk 00:30:01]} {[%emt 00:00:11]} Qxb3 {[%clk 01:17:03]} {[%emt
00:00:30]} 19. axb3 {[%clk 00:30:27]} {[%emt 00:00:04]} Bxd3 {[%clk 01:16:52]}
{[%emt 00:00:41]} 20. Rxd3 {[%clk 00:30:51]} {[%emt 00:00:05]} f6 {[%clk
01:15:19]} {[%emt 00:02:03]} 21. Bf4 {[%clk 00:30:53]} {[%emt 00:00:28]} f5
{[%clk 01:13:59]} {[%emt 00:01:50]} 22. Rg3 {[%clk 00:29:56]} {[%emt 00:01:26]}
Rhg8 {[%clk 01:13:26]} {[%emt 00:01:04]} 23. Bg5 {[%clk 00:29:31]} {[%emt
00:00:55]} Bxg5 {[%clk 01:12:38]} {[%emt 00:01:18]} 24. Rxg5 {[%clk 00:29:58]}
{[%emt 00:00:02]} g6 {[%clk 01:12:36]} {[%emt 00:00:31]} 25. Ra1 {[%clk
00:28:57]} {[%emt 00:01:32]} Ra8 {[%clk 01:11:28]} {[%emt 00:01:37]} 26. h4
{[%clk 00:28:00]} {[%emt 00:01:27]} h6 {[%clk 01:10:46]} {[%emt 00:01:13]} 27.
Rg3 {[%clk 00:28:19]} {[%emt 00:00:10]} a6 {[%clk 01:10:02]} {[%emt 00:01:13]}
28. c4 {[%clk 00:28:06]} {[%emt 00:00:44]} Rad8 {[%clk 01:09:38]} {[%emt
00:00:53]} 29. Rd3 {[%clk 00:28:02]} {[%emt 00:00:35]} Rd7 {[%clk 01:08:36]}
{[%emt 00:01:33]} 30. Rc1 {[%clk 00:27:37]} {[%emt 00:00:55]} Kb6 {[%clk
01:08:20]} {[%emt 00:00:46]} 31. c5+ {[%clk 00:24:09]} {[%emt 00:03:58]} Kb5
{[%clk 01:08:18]} {[%emt 00:00:32]} 32. Rdc3 {[%clk 00:23:16]} {[%emt
00:01:23]} Rc7 {[%clk 01:07:39]} {[%emt 00:01:08]} 33. Ra1 {[%clk 00:21:05]}
{[%emt 00:02:40]} g5 {[%clk 01:07:19]} {[%emt 00:00:52]} 34. Rg3 {[%clk
00:20:48]} {[%emt 00:00:48]} g4 {[%clk 01:07:06]} {[%emt 00:00:43]} 35. Kf2
{[%clk 00:19:26]} {[%emt 00:01:52]} f4 {[%clk 01:06:41]} {[%emt 00:00:55]} 36.
Rc3 {[%clk 00:19:26]} {[%emt 00:00:30]} Rf7 {[%clk 01:04:33]} {[%emt 00:02:38]}
37. Ra3 {[%clk 00:16:10]} {[%emt 00:03:46]} Rf5 {[%clk 01:00:02]} {[%emt
00:05:02]} 38. b4 {[%clk 00:13:28]} {[%emt 00:03:11]} g3+ {[%clk 00:58:29]}
{[%emt 00:02:04]} 39. Kf3 {[%clk 00:13:46]} {[%emt 00:00:12]} Rh5 {[%emt
00:01:06]} 40. Ra5+ {[%clk 00:11:33]} {[%emt 00:01:57]} Kxb4 {[%clk 00:58:26]}
{[%emt 00:00:41]} 41. Raa3 {[%clk 00:11:52]} {[%emt 00:00:11]} Kb5 {[%clk
00:58:02]} {[%emt 00:00:55]} 42. Rab3+ {[%clk 00:11:45]} {[%emt 00:00:37]} Kc6
{[%clk 00:58:01]} {[%emt 00:00:30]} 43. Rb6+ {[%clk 00:12:00]} {[%emt
00:00:16]} Kc7 {[%clk 00:58:15]} {[%emt 00:00:16]} 44. Rcb3 {[%clk 00:11:50]}
{[%emt 00:00:40]} Rb8 {[%clk 00:57:33]} {[%emt 00:01:12]} 45. Kg4 {[%clk
00:10:38]} {[%emt 00:01:42]} Rf5 {[%clk 00:57:36]} {[%emt 00:00:27]} 46. Rxe6
{[%clk 00:10:44]} {[%emt 00:00:25]} Rf7 {[%clk 00:57:14]} {[%emt 00:00:52]} 47.
Rxh6 {[%clk 00:09:38]} {[%emt 00:01:35]} Rg8+ {[%clk 00:55:16]} {[%emt
00:02:28]} 48. Kf3 {[%clk 00:09:57]} {[%emt 00:00:12]} Re8 {[%clk 00:51:20]}
{[%emt 00:04:25]} 49. Rbb6 {[%clk 00:09:39]} {[%emt 00:00:48]} Ree7 {[%clk
00:50:24]} {[%emt 00:01:26]} 50. Rbf6 {[%clk 00:09:30]} {[%emt 00:00:39]} Rg7
{[%clk 00:49:18]} {[%emt 00:01:36]} 51. Rd6 {[%clk 00:09:24]} {[%emt 00:00:35]}
Rh7 {[%clk 00:48:27]} {[%emt 00:01:22]} 52. h5 {[%clk 00:09:16]} {[%emt
00:00:38]} a5 {[%clk 00:47:49]} {[%emt 00:01:08]} 53. Rxh7 {[%clk 00:09:36]}
{[%emt 00:00:10]} Rxh7 {[%clk 00:48:14]} {[%emt 00:00:06]} 54. h6 {[%clk
00:10:05]} {[%emt 00:00:01]} Rh8 {[%clk 00:48:18]} {[%emt 00:00:25]} 55. Rg6
{[%clk 00:10:29]} {[%emt 00:00:06]} a4 {[%clk 00:48:06]} {[%emt 00:00:42]} 56.
h7 {[%clk 00:10:30]} {[%emt 00:00:29]} Rxh7 {[%clk 00:48:08]} {[%emt 00:00:27]}
57. Rf6 {[%clk 00:10:34]} {[%emt 00:00:27]} Rh1 {[%clk 00:47:47]} {[%emt
00:00:51]} 58. Kxf4 {[%clk 00:10:43]} {[%emt 00:00:20]} Rb1 {[%clk 00:47:55]}
{[%emt 00:00:23]} 59. Rb6 {[%emt 00:00:55]} Rd1 {[%clk 00:46:47]} {[%emt
00:01:16]} 60. Rb4 {[%clk 00:11:01]} {[%emt 00:00:08]} Rd2 {[%clk 00:46:59]}
{[%emt 00:00:19]} 61. Kxg3 {[%clk 00:11:26]} {[%emt 00:00:05]} Rd3+ {[%clk
00:46:34]} {[%emt 00:00:55]} 62. Kf4 {[%clk 00:11:48]} {[%emt 00:00:08]} Rd2
{[%clk 00:46:31]} {[%emt 00:00:33]} 63. g4 {[%clk 00:12:14]} {[%emt 00:00:03]}
Rd1 {[%clk 00:46:12]} {[%emt 00:00:50]} 64. Rxa4 {[%clk 00:12:39]} {[%emt
00:00:05]} 1-0